bitfinex/quotes_ETHUSD_20260209
["timestamp","ask_amount","ask_price","bid_price","bid_amount"]
[1770662143172,4.44511211,2134.8,2133.7,0.06082867]
[1770662143399,3.274,2134.8,2133.9,4.3907006]
[1770662143699,1.17103145,2134.9,2133.9,4.32987193]
[1770662144071,1.17103145,2134.9,2134.0,4.3907006]
[1770662144479,1.17103145,2134.9,2133.7,3.33482867]
[1770662144679,4.68606014,2135.2,2133.8,1.1716187]
[1770662146006,0.002,2135.2,2133.8,5.39917222]
[1770662146187,0.002,2135.2,2133.9,4.28838219]
[1770662146790,0.002,2135.2,2134.0,1.1715089]
[1770662147312,0.002,2135.2,2134.0,5.39906242]
[1770662147614,0.002,2135.2,2134.1,0.06082867]
[1770662148314,0.003,2134.8,2134.1,0.06082867]
[1770662149313,0.003,2134.8,2134.2,1.17139911]
[1770662149816,0.002,2135.2,2134.1,1.17143419]
[1770662149998,0.002,2135.2,2133.4,8.91485479]
[1770662150339,0.002,2135.2,2133.7,1.17166847]
[1770662150608,0.002,2135.2,2133.4,4.22755352]
[1770662150609,3.92808984,2135.2,2133.8,1.17161277]
[1770662151403,1.17090534,2135.1,2133.5,5.46016564]
[1770662151606,5.15782385,2135.1,2133.5,5.46016564]
[1770662151814,5.15782385,2135.1,2133.5,5.39933697]
[1770662152001,5.09699518,2135.1,2133.5,5.39933697]
[1770662152203,3.92608984,2134.8,2133.3,1.17187242]
[1770662152402,3.92608984,2134.8,2133.4,1.17183641]
[1770662152718,1.17090534,2135.1,2133.4,1.17183641]
[1770662152719,3.92608984,2135.0,2133.4,1.17183641]
[1770662152908,4.99337997,2134.9,2133.4,1.17183641]
[1770662153112,1.00646146,2134.8,2133.4,1.17183641]
[1770662153306,1.00646146,2134.7,2133.4,1.17183641]
[1770662153507,3.274,2134.6,2133.1,4.68781687]
[1770662154591,3.274,2134.6,2133.1,8.91537039]
[1770662154792,3.274,2134.6,2133.2,4.28838219]
[1770662154992,4.68471844,2134.7,2133.5,4.22755352]
[1770662155321,4.68375161,2135.1,2133.6,4.28838219]
[1770662155518,4.68375161,2135.1,2133.8,4.22755352]
[1770662155821,4.68375161,2135.1,2133.7,1.17167361]
[1770662156832,1.17290534,2135.2,2133.7,1.17167361]
[1770662156833,1.17289114,2135.2,2134.0,0.06082867]
[1770662156998,1.17289114,2135.2,2134.0,4.28838219]
[1770662157396,1.17289114,2135.2,2134.1,1.171454]
[1770662157599,4.93265785,2135.1,2133.5,8.91456563]
[1770662157838,1.00659762,2135.0,2133.8,1.17158407]
[1770662158024,3.98691851,2135.1,2133.7,1.17163461]
[1770662158211,1.00657169,2135.0,2133.9,1.1715395]
[1770662158526,3.92608984,2135.1,2133.5,8.91454724]
[1770662158730,1.00661339,2135.0,2133.7,1.17167291]
[1770662158901,3.98691851,2135.0,2133.3,4.68745968]
[1770662159237,3.98691851,2135.0,2133.2,0.06082867]
[1770662159238,1.00669103,2134.9,2133.9,0.001]
[1770662159441,1.17106988,2134.8,2133.9,0.001]
[1770662161044,5.15798839,2134.8,2133.9,0.001]
[1770662161200,1.00692643,2134.7,2133.9,0.001]
[1770662161401,3.274,2134.6,2133.9,0.001]
[1770662161608,1.17123448,2134.5,2133.9,0.001]
[1770662162007,3.92608984,2134.4,2132.8,1.17313805]
[1770662162231,3.92608984,2134.2,2132.8,1.17313812]
[1770662162413,1.17123448,2134.5,2133.1,4.28838219]
[1770662162608,3.92608984,2134.0,2132.8,0.001]
[1770662162808,4.28106439,2133.9,2132.8,0.001]
[1770662163118,0.06082867,2133.5,2131.7,4.22755352]
[1770662163313,1.00706439,2133.4,2131.9,1.17262789]
[1770662163511,1.17194824,2133.2,2131.7,5.40027141]
[1770662163829,3.33482867,2133.1,2131.7,5.40028527]
[1770662164210,3.33482867,2133.1,2131.5,4.69150732]
[1770662164526,3.33482867,2133.1,2131.3,4.22755352]
[1770662164705,1.00574947,2133.0,2131.7,5.40032264]
[1770662164908,3.274,2133.1,2131.7,5.40032264]
[1770662165138,4.93183884,2133.0,2131.5,1.17284514]
[1770662165340,3.98691851,2133.0,2131.4,1.17291405]
[1770662165505,1.17216804,2132.8,2131.3,8.91947768]
[1770662165831,1.17216804,2132.8,2131.4,1.17293797]
[1770662166035,0.06082867,2132.7,2131.3,5.4005116]
[1770662166236,0.06082867,2132.5,2131.2,1.17304489]
[1770662166740,3.92608984,2132.7,2131.3,1.17299004]
[1770662166921,0.06082867,2132.6,2131.3,1.17299004]
[1770662167637,1.17233294,2132.5,2131.1,1.17310309]
[1770662168312,1.17233294,2132.5,2131.2,4.22755352]
[1770662169238,1.17233294,2132.5,2131.2,4.28838219]
[1770662169840,1.17233294,2132.5,2131.3,1.172993]
[1770662170036,1.17233294,2132.5,2131.4,4.22755352]
[1770662171942,1.17233294,2132.5,2131.5,1.17288294]
[1770662173545,1.17233294,2132.5,2131.4,5.40145035]
[1770662174339,1.17233294,2132.5,2131.4,0.001]
[1770662174641,5.09842278,2132.5,2131.4,0.001]
[1770662175627,1.17233294,2132.5,2131.4,0.001]
[1770662176520,3.276,2132.4,2131.4,0.001]
[1770662178552,1.1724429,2132.3,2131.4,0.001]
[1770662178849,1.1724429,2132.3,2131.1,0.001]
[1770662178850,4.90876375,2132.3,2131.1,0.001]
[1770662179034,1.1724429,2132.3,2131.1,0.001]
[1770662179826,3.277,2132.2,2131.1,0.001]
[1770662180450,1.1724429,2132.3,2131.1,3.72841945]
[1770662180651,1.17255288,2132.1,2131.2,1.17304804]
[1770662180834,1.17255288,2132.1,2131.1,4.90148162]
[1770662181959,1.17255288,2132.1,2131.1,0.001]
[1770662182340,1.17255288,2132.1,2131.1,1.17410012]
[1770662182539,1.17255288,2132.1,2131.1,0.001]
[1770662183833,4.92008257,2132.1,2131.1,0.001]
[1770662184180,3.80835836,2132.0,2131.1,0.001]
[1770662184862,1.17266288,2131.9,2131.1,0.001]
[1770662186035,1.17266288,2131.9,2131.3,0.001]
[1770662186232,1.17266288,2131.9,2131.1,0.001]
[1770662187771,1.17459347,2132.1,2131.1,3.72841945]
[1770662188777,0.002,2132.1,2131.2,1.17304804]
[1770662188938,0.002,2132.1,2131.3,3.72741945]
[1770662190335,0.002,2132.1,2131.2,1.17304804]
[1770662191053,0.002,2132.1,2131.1,3.72841945]
[1770662193040,0.002,2132.1,2131.2,4.90046749]
[1770662194052,0.002,2132.1,2131.1,1.17407259]
[1770662194654,0.002,2132.1,2131.1,4.90149204]
[1770662194855,0.002,2132.1,2131.2,3.72741945]
[1770662195063,0.002,2132.1,2131.3,1.172993]
[1770662195365,0.002,2132.1,2131.2,1.17304723]
[1770662195947,0.002,2132.1,2131.2,4.90046668]
[1770662197943,0.002,2132.1,2131.2,3.72741945]
[1770662198149,0.002,2132.1,2131.1,0.001]
[1770662198976,1.01036526,2132.0,2131.3,0.001]
[1770662199280,0.002,2132.1,2131.3,0.001]
[1770662199483,1.17266288,2131.9,2131.3,0.001]
[1770662199785,4.28841646,2131.8,2131.3,0.001]
[1770662199951,1.07124513,2131.7,2131.1,0.001]
[1770662200152,1.01041646,2131.6,2130.8,0.001]
[1770662200577,7.08635836,2131.8,2130.8,0.001]
[1770662200759,1.01042541,2131.7,2130.8,0.001]
[1770662200965,1.01042541,2131.6,2130.8,0.001]
[1770662201164,7.02552969,2131.8,2130.8,0.001]
[1770662201365,3.74752969,2131.4,2130.2,0.001]
[1770662201567,0.06082867,2131.0,2130.2,0.001]
[1770662201761,4.28842691,2130.9,2130.2,0.001]
[1770662202080,3.80835836,2130.7,2129.8,0.001]
[1770662202283,0.06082867,2130.5,2129.8,0.001]
[1770662202452,1.01042691,2130.4,2129.6,0.001]
[1770662202653,4.0,2130.3,2129.6,0.001]
[1770662202903,3.278,2130.6,2129.6,3.72841945]
[1770662203049,1.01116813,2130.5,2129.6,3.72841945]
[1770662203385,3.278,2130.6,2129.6,3.72841945]
[1770662203584,1.17343346,2130.5,2129.6,0.001]
[1770662204284,1.01116355,2130.4,2129.6,0.001]
[1770662204484,1.0112105,2130.3,2129.6,0.001]
[1770662204669,1.23426213,2130.5,2129.6,0.001]
[1770662204871,1.01124105,2130.4,2129.6,0.001]
[1770662205182,1.01124105,2130.3,2129.6,0.001]
[1770662205493,1.01124105,2130.2,2129.6,0.001]
[1770662205784,1.17354363,2130.3,2129.6,0.001]
[1770662205987,1.01154379,2130.2,2129.6,0.001]
[1770662206196,1.2343723,2130.3,2129.4,0.001]
[1770662206197,1.01154892,2130.1,2129.4,0.001]
[1770662206358,4.28954892,2130.0,2129.4,0.001]
[1770662206562,3.278,2130.0,2129.4,0.001]
[1770662207888,1.17376402,2129.9,2129.4,0.001]
[1770662210413,0.06082867,2129.8,2128.7,1.17541739]
[1770662210604,1.17376402,2129.9,2128.9,3.63455714]
[1770662211402,1.17376402,2129.9,2129.6,0.001]
[1770662211802,1.67900407,2130.6,2129.6,0.001]
[1770662212107,4.45343346,2130.5,2129.6,0.001]
[1770662213316,4.45343346,2130.5,2129.6,3.63555714]
[1770662213519,3.28,2130.5,2129.6,3.63555714]
[1770662213894,1.17348854,2130.4,2129.6,4.80947141]
[1770662214206,1.17348854,2130.4,2129.6,0.001]
[1770662215624,1.17348854,2130.4,2129.6,1.17491342]
[1770662216085,1.17348854,2130.4,2129.6,0.001]
[1770662217525,4.71409844,2130.4,2129.6,0.001]
[1770662218110,1.23431721,2130.4,2129.6,0.001]
[1770662218309,1.23431721,2130.4,2129.4,0.001]
[1770662218886,0.06082867,2130.2,2129.4,0.001]
[1770662219301,3.5406099,2130.2,2129.4,0.001]
[1770662219500,1.23431721,2130.4,2129.4,0.001]
[1770662221526,1.17348854,2130.4,2129.4,0.001]
[1770662221827,1.17348854,2130.4,2129.4,3.63555714]
[1770662222810,1.17348854,2130.4,2129.4,4.80958504]
[1770662224128,0.002,2130.2,2129.4,4.80958504]
[1770662226341,0.06082867,2130.1,2129.4,0.001]
[1770662226664,0.06082867,2129.5,2128.9,0.001]
[1770662226833,4.45503963,2129.4,2128.9,0.001]
[1770662228043,0.06082867,2129.1,2128.7,0.001]
[1770662228349,0.06082867,2129.1,2127.8,1.17590145]
[1770662228559,0.06082867,2128.9,2127.8,1.17591987]
[1770662228715,1.1744257,2128.7,2127.8,3.63555714]
[1770662228921,4.45540361,2128.8,2127.8,3.63555714]
[1770662230935,4.45540361,2128.8,2127.8,4.81044174]
[1770662231452,3.281,2129.4,2127.9,3.99988005]
[1770662231659,3.281,2129.4,2127.9,3.63455714]
[1770662232043,3.281,2129.4,2128.1,3.63455714]
[1770662232629,3.281,2129.4,2128.3,3.63455714]
[1770662232852,4.45505549,2129.4,2128.5,3.63455714]
[1770662234254,1.17376402,2130.0,2128.5,3.69538581]
[1770662234550,4.45476402,2130.0,2128.6,0.2335703]
[1770662234750,4.45476402,2130.0,2128.7,3.63455714]
[1770662234923,4.45476402,2130.0,2128.9,3.63455714]
[1770662235924,4.51559269,2130.0,2128.8,1.17437053]
[1770662236124,0.06082867,2129.8,2128.6,1.17444597]
[1770662236348,7.82015613,2130.0,2128.7,1.17441077]
[1770662236545,1.00788211,2129.9,2128.7,1.17441077]
[1770662236731,4.51559269,2130.0,2128.7,1.17541077]
[1770662236948,1.17381913,2129.8,2128.7,4.69602271]
[1770662237446,1.17381913,2129.8,2128.7,0.001]
[1770662237447,1.2346478,2129.8,2128.7,0.001]
[1770662237953,1.00801128,2129.7,2128.7,0.001]
[1770662238144,1.2346478,2129.8,2128.7,0.001]
[1770662238334,1.00810998,2129.7,2128.7,0.001]
[1770662238534,1.2346478,2129.8,2128.7,0.001]
[1770662238740,1.00811067,2129.7,2128.7,0.001]
[1770662238959,1.0081187,2129.6,2128.7,0.001]
[1770662239162,2.1821032,2129.5,2128.7,0.001]
[1770662239458,3.281,2129.4,2128.7,0.001]
[1770662240658,3.281,2129.4,2128.7,3.63628301]
[1770662241158,3.281,2129.4,2128.8,1.17437053]
[1770662241753,4.45505166,2129.4,2128.8,1.17437053]
[1770662241955,3.281,2129.4,2128.8,4.80965354]
[1770662242129,3.281,2129.4,2128.9,3.63528301]
[1770662242735,1.17397024,2129.6,2128.9,3.63528301]
[1770662243065,4.69536073,2129.8,2129.0,1.17426021]
[1770662243239,4.69536073,2129.8,2129.1,3.63528301]
[1770662243933,1.17376402,2129.9,2129.1,3.63528301]
[1770662244256,4.4577372,2130.0,2129.1,3.63528301]
[1770662245258,4.45771058,2130.0,2129.3,3.63528301]
[1770662245434,4.45773603,2130.0,2129.3,3.63528301]
[1770662246063,4.45773603,2130.0,2129.2,1.17414991]
[1770662246263,4.45773603,2130.0,2128.9,3.63528301]
[1770662246457,4.45773603,2130.0,2129.0,1.17422649]
[1770662246653,4.5185647,2130.0,2128.8,1.17436813]
[1770662246840,0.06082867,2129.8,2128.7,0.001]
[1770662247036,9.36819945,2130.0,2128.7,0.001]
[1770662247249,1.2346478,2129.8,2128.7,0.001]
[1770662247450,1.00906356,2129.7,2128.7,0.001]
[1770662247667,0.06082867,2129.6,2128.7,0.001]
[1770662247865,1.00945556,2129.5,2128.7,0.001]
[1770662248182,4.29045556,2129.4,2128.7,0.001]
[1770662248346,2.8528232,2129.8,2128.7,3.63628301]
[1770662248347,1.17381913,2129.8,2128.7,3.63628301]
[1770662248733,3.281,2129.9,2128.9,3.63528301]
[1770662248945,3.281,2129.9,2129.1,3.63528301]
[1770662249275,3.281,2129.9,2129.3,3.63528301]
[1770662249449,3.281,2129.9,2129.3,3.52743496]
[1770662249634,0.002,2129.4,2129.3,3.52743496]
[1770662249835,0.002,2130.0,2129.3,3.63528301]
[1770662250249,0.002,2130.2,2129.5,3.63528301]
[1770662251270,0.002,2130.2,2129.7,3.63528301]
[1770662251442,0.002,2130.2,2129.5,1.17397918]
[1770662251636,0.002,2130.2,2129.6,3.63528301]
[1770662252571,0.002,2130.2,2129.5,1.17397918]
[1770662253069,0.002,2130.2,2129.2,8.56543519]
[1770662253070,0.002,2130.2,2129.2,4.80940034]
[1770662253233,1.17559872,2130.2,2129.2,4.80940034]
[1770662253437,1.17559872,2130.2,2129.2,1.17411733]
[1770662253637,1.17559872,2130.2,2129.3,3.63528301]
[1770662254651,1.17559872,2130.2,2129.2,1.17414684]
[1770662255058,3.59703343,2130.1,2128.7,0.001]
[1770662255254,1.17376402,2129.9,2128.7,0.001]
[1770662255864,1.00843767,2129.8,2128.7,0.001]
[1770662256069,1.17376402,2129.9,2128.7,0.001]
[1770662256574,1.17376402,2129.9,2128.7,3.63628301]
[1770662257278,4.6950561,2130.1,2128.8,4.80965354]
[1770662257484,0.002,2130.2,2129.1,3.63528301]
[1770662257648,0.002,2130.2,2129.1,3.69611168]
[1770662257850,0.002,2130.2,2129.4,3.63528301]
[1770662258165,1.17559985,2130.2,2129.4,3.63528301]
[1770662258565,0.002,2130.2,2129.4,3.63528301]
[1770662259266,0.002,2130.2,2129.6,1.17392937]
[1770662259469,0.002,2130.2,2129.7,3.63528301]
[1770662259654,0.002,2130.3,2129.7,3.69611168]
[1770662259852,0.002,2130.3,2129.7,3.63528301]
[1770662260180,0.002,2130.3,2129.6,1.17392937]
[1770662260353,0.002,2130.3,2129.6,4.80921238]
[1770662260560,0.002,2130.3,2129.7,3.63528301]
[1770662261878,0.002,2130.3,2129.9,3.63528301]
[1770662262076,0.002,2130.0,2129.9,3.63528301]
[1770662262252,0.002,2130.0,2129.7,1.17383196]
[1770662263156,0.002,2130.0,2129.7,1.17387155]
[1770662263551,0.002,2130.3,2129.7,4.80915456]
[1770662264865,0.002,2130.3,2129.7,1.17387155]
[1770662266272,0.002,2130.3,2129.7,4.61184355]
[1770662266778,0.002,2130.4,2129.8,3.437972]
[1770662267280,3.281,2130.8,2129.8,3.437972]
[1770662267853,1.17513144,2131.1,2129.8,3.49880067]
[1770662268182,3.35806787,2131.0,2129.7,1.17387155]
[1770662268554,1.17321319,2130.9,2129.6,0.1024]
[1770662268754,4.59210973,2130.9,2129.5,4.69592035]
[1770662268968,4.53128106,2130.9,2129.5,4.69592035]
[1770662269880,4.53128106,2130.9,2129.5,8.13389235]
[1770662270502,4.53128106,2130.9,2129.5,4.69592035]
[1770662270690,1.17321319,2130.9,2129.6,3.437972]
[1770662271195,1.17320749,2131.0,2129.8,3.437972]
[1770662271800,1.00830319,2130.9,2129.5,8.13389235]
[1770662272002,3.41889654,2130.9,2129.5,8.13389235]
[1770662272174,1.00832296,2130.8,2129.5,8.13389235]
[1770662272376,3.41889654,2130.9,2129.5,8.13389235]
[1770662272575,1.17332332,2130.7,2129.5,8.13389235]
[1770662274290,0.002,2131.1,2130.0,3.49880067]
[1770662274607,0.002,2131.1,2130.2,4.61157072]
[1770662274806,0.002,2130.7,2130.2,4.61157072]
[1770662275006,0.002,2131.1,2130.2,4.61157072]
[1770662275517,0.002,2130.9,2130.2,4.61157072]
[1770662277698,0.002,2130.9,2130.2,1.17359872]
[1770662278209,0.002,2131.1,2130.2,4.61157072]
[1770662280598,0.002,2131.1,2130.2,11.76157072]
[1770662280804,0.002,2131.1,2130.3,3.437972]
[1770662280997,0.002,2131.1,2130.4,1.17348854]
[1770662281510,0.002,2131.1,2130.4,4.61146054]
[1770662282224,0.002,2131.1,2130.2,1.17357121]
[1770662282526,0.002,2131.1,2130.3,1.17353882]
[1770662282723,0.002,2131.1,2130.2,1.17356014]
[1770662282913,0.002,2131.1,2130.3,1.17353222]
[1770662283222,0.002,2131.1,2130.0,4.69482965]
[1770662283223,0.002,2131.1,2130.0,8.13280165]
[1770662285829,0.002,2131.1,2130.1,3.437972]
[1770662286832,0.002,2131.1,2130.1,6.716972]
[1770662287034,0.002,2131.1,2130.2,1.17359872]
[1770662287636,0.002,2130.9,2129.8,6.717972]
[1770662287938,0.002,2130.9,2130.0,1.17368788]
[1770662288312,0.002,2130.9,2129.8,0.001]
[1770662288512,1.01119471,2130.8,2129.8,0.001]
[1770662288735,3.36006787,2130.9,2129.8,1.17480265]
[1770662288928,1.01119934,2130.8,2129.8,1.17480265]
[1770662289140,1.17326825,2130.8,2129.8,0.001]
[1770662289446,3.35806787,2130.5,2129.8,0.001]
[1770662289741,1.01138748,2130.4,2129.8,0.001]
[1770662290321,4.36945535,2130.4,2129.8,0.001]
[1770662290526,1.01138748,2130.3,2129.8,0.001]
[1770662290728,3.35806787,2130.4,2129.8,0.001]
[1770662290919,1.01120269,2130.3,2129.8,0.001]
[1770662291256,1.17354363,2130.3,2129.8,0.001]
[1770662292043,1.01090462,2130.2,2129.8,0.001]
[1770662292237,1.17354363,2130.3,2129.5,0.001]
[1770662292435,1.01054731,2130.2,2129.5,0.001]
[1770662292641,1.17354363,2130.3,2129.5,0.001]
[1770662292965,3.41889654,2130.0,2128.9,0.001]
[1770662293249,1.17381913,2129.8,2128.9,0.001]
[1770662293838,1.01007622,2129.7,2128.9,0.001]
[1770662294147,4.531887,2129.8,2128.9,0.001]
[1770662294351,4.36709726,2129.7,2128.9,0.001]
[1770662294520,1.00902939,2129.6,2128.9,0.001]
[1770662294720,3.35806787,2129.7,2128.9,0.001]
[1770662294954,1.00905844,2129.6,2128.9,0.001]
[1770662295249,1.17392937,2129.6,2128.9,0.001]
[1770662295447,4.69461527,2130.2,2128.9,3.438972]
[1770662297326,4.69461527,2130.2,2129.0,1.17426021]
[1770662297538,4.69461527,2130.2,2128.9,0.001]
[1770662297539,1.0681602,2130.1,2128.9,0.001]
[1770662297717,3.11092753,2130.1,2128.9,1.17530544]
[1770662298937,3.11092753,2130.1,2128.9,0.001]
[1770662299137,3.1717562,2130.1,2128.9,1.17531368]
[1770662299341,3.1717562,2130.1,2129.1,0.001]
[1770662299342,1.17370892,2130.0,2129.1,0.001]
[1770662300530,4.53740886,2130.0,2129.1,0.001]
[1770662302062,3.42452861,2129.9,2129.1,0.001]
[1770662302365,3.28,2129.8,2129.1,0.001]
[1770662304257,1.17387425,2129.7,2129.1,0.001]
[1770662304453,3.36369994,2129.6,2128.9,0.001]
[1770662304662,3.36369994,2129.4,2128.7,0.001]
[1770662307446,1.17409477,2129.3,2128.7,0.001]
[1770662307646,3.281,2129.2,2128.7,0.001]
[1770662309235,3.281,2129.2,2128.5,0.001]
[1770662309438,1.17420506,2129.1,2128.5,0.001]
[1770662311339,1.17420506,2129.1,2128.0,1.17580519]
[1770662311657,1.17420506,2129.1,2128.6,0.001]
[1770662312131,1.17420506,2129.1,2128.0,0.001]
[1770662312531,1.17420506,2129.1,2128.1,3.12342127]
[1770662312733,4.69596994,2129.5,2128.1,3.12342127]
[1770662313563,1.1739845,2129.6,2128.2,1.17470162]
[1770662313858,1.1739845,2129.6,2128.3,3.12342127]
[1770662315952,1.1739845,2129.6,2128.4,4.29801251]
[1770662316133,1.1739845,2129.6,2128.5,3.12342127]
[1770662316533,4.69781342,2129.8,2128.7,3.12342127]
[1770662316534,0.002,2129.8,2128.7,3.12342127]
[1770662316763,1.17583802,2129.8,2128.7,3.12342127]
[1770662317342,0.002,2129.8,2128.7,3.12342127]
[1770662317535,1.17582851,2129.8,2128.7,3.12342127]
[1770662317961,0.002,2129.8,2128.8,1.17437053]
[1770662318152,0.002,2129.8,2128.8,4.2977918]
[1770662318770,0.06082867,2129.7,2128.5,3.12342127]
[1770662319065,1.00885561,2129.6,2128.5,3.12342127]
[1770662319247,4.29085561,2129.5,2128.5,4.29795169]
[1770662319580,3.282,2129.5,2128.4,1.17458282]
[1770662319758,1.00968908,2129.4,2128.3,1.1746367]
[1770662320069,1.17403963,2129.4,2128.2,4.29810166]
[1770662320365,1.00999937,2129.3,2128.2,4.29808589]
[1770662320671,1.2348683,2129.4,2128.2,1.17466462]
[1770662320970,1.01000321,2129.3,2128.0,1.17577863]
[1770662321139,1.01000321,2129.2,2128.0,1.17576713]
[1770662321340,1.01000321,2129.1,2128.0,0.001]
[1770662321658,1.01035279,2129.0,2128.0,0.001]
[1770662321831,4.29235279,2128.9,2128.0,0.001]
[1770662322034,3.282,2128.9,2128.0,0.001]
[1770662322464,1.17437053,2128.8,2128.0,0.001]
[1770662323036,4.45635688,2128.9,2128.0,0.001]
[1770662323259,4.45635688,2128.9,2128.0,3.12442127]
[1770662323560,4.45635688,2128.9,2128.5,0.001]
[1770662323964,4.45635688,2128.9,2128.3,0.001]
[1770662324758,5.95907083,2129.3,2128.3,3.12442127]
[1770662324759,1.17418527,2129.2,2128.3,3.12442127]
[1770662325174,1.23501394,2129.2,2128.3,0.001]
[1770662325462,3.50685509,2129.2,2128.3,0.001]
[1770662325669,0.06082867,2129.0,2128.3,0.001]
[1770662325841,3.282,2128.9,2128.3,0.001]
[1770662326041,1.01003181,2128.8,2128.3,0.001]
[1770662326236,1.01003181,2128.8,2128.0,0.001]
[1770662327037,1.1744257,2128.7,2128.0,0.001]
[1770662327670,1.01004831,2128.6,2128.0,0.001]
[1770662327975,1.1744257,2128.7,2128.0,0.001]
[1770662328170,1.01008601,2128.6,2128.0,0.001]
[1770662328374,1.1744257,2128.7,2128.0,0.001]
[1770662328572,1.00997582,2128.6,2128.0,0.001]
[1770662328773,1.1744257,2128.7,2128.0,0.001]
[1770662328942,1.00997777,2128.6,2128.0,0.001]
[1770662329142,1.1744257,2128.7,2128.0,0.001]
[1770662329340,1.1744257,2128.7,2127.8,0.001]
[1770662329341,0.06082867,2128.1,2127.8,0.001]
[1770662329567,3.282,2128.0,2127.6,0.001]
[1770662330064,3.282,2128.0,2127.4,0.001]
[1770662330378,1.00953423,2127.9,2126.9,4.33195574]
[1770662330569,3.282,2128.0,2126.9,0.001]
[1770662330740,1.00953975,2127.9,2126.9,0.001]
[1770662330944,0.06082867,2127.9,2126.9,0.001]
[1770662331161,1.17492245,2127.8,2126.9,0.001]
[1770662333584,0.06082867,2127.7,2126.9,0.001]
[1770662333741,1.17492245,2127.8,2126.9,0.001]
[1770662334141,4.16421345,2127.7,2126.9,0.001]
[1770662334451,4.22448122,2127.6,2126.9,0.001]
[1770662334649,3.21712249,2127.6,2126.9,0.001]
[1770662335277,1.17508813,2127.5,2126.2,1.1758066]
[1770662335488,3.283,2127.4,2126.2,1.1758066]
[1770662335850,3.34382867,2127.4,2126.2,1.1758066]
[1770662336262,3.283,2127.4,2126.3,3.1555407]
[1770662336640,1.17508813,2127.5,2126.3,3.1555407]
[1770662336845,1.17508813,2127.5,2126.5,3.1555407]
[1770662337283,1.17492245,2127.8,2127.1,0.001]
[1770662337454,1.17692245,2127.8,2127.1,0.001]
[1770662338450,0.002,2127.8,2127.1,3.1565407]
[1770662338774,0.002,2127.8,2127.1,0.001]
[1770662342683,0.06082867,2127.7,2127.1,0.001]
[1770662342882,0.002,2127.8,2127.1,0.001]
[1770662344570,0.06282867,2127.8,2127.1,0.001]
[1770662345094,0.06082867,2127.6,2126.9,0.001]
[1770662345263,0.06082867,2127.4,2126.9,0.001]
[1770662345463,3.284,2127.3,2126.9,0.001]
[1770662346094,1.17525385,2127.2,2126.9,0.001]
[1770662346896,4.45923879,2127.3,2126.9,0.001]
[1770662347201,3.284,2127.3,2126.9,0.001]
[1770662347704,4.45920231,2127.3,2126.9,0.001]
[1770662348974,4.45920231,2127.3,2126.9,3.1565407]
[1770662348975,3.284,2127.3,2126.9,3.1565407]
[1770662349426,4.45921359,2127.3,2126.9,0.001]
[1770662350389,4.45921359,2127.3,2127.1,0.001]
[1770662350593,3.284,2127.3,2127.1,3.1565407]
[1770662350901,1.17696356,2127.8,2127.1,3.1565407]
[1770662351210,1.17696356,2127.8,2127.1,0.001]
[1770662352280,0.002,2127.8,2127.1,0.001]
[1770662352587,6.50412249,2127.8,2127.1,0.001]
[1770662352778,3.287,2127.8,2127.1,0.001]
[1770662353908,3.34782867,2127.8,2127.1,0.001]
[1770662354710,1.17497767,2127.7,2127.1,0.001]
[1770662356408,4.46196536,2127.8,2127.1,0.001]
[1770662356714,1.01171848,2127.7,2127.1,0.001]
[1770662356925,4.46196536,2127.8,2127.1,0.001]
[1770662357226,1.01171927,2127.7,2127.1,0.001]
[1770662357534,1.01171927,2127.6,2127.1,0.001]
[1770662357734,4.46196536,2127.8,2127.1,0.001]
[1770662357916,1.01245047,2127.7,2127.1,0.001]
[1770662358232,1.01245047,2127.6,2127.1,0.001]
[1770662358417,5.78460337,2127.8,2127.1,0.001]
[1770662358618,3.24561278,2127.6,2127.1,0.001]
[1770662358820,1.01317873,2127.5,2127.1,0.001]
[1770662359022,2.18826784,2127.5,2127.1,0.001]
[1770662359228,1.17508911,2127.5,2127.1,0.001]
[1770662359732,1.17508508,2127.6,2127.1,0.001]
[1770662359932,1.01409135,2127.5,2127.1,0.001]
[1770662360229,1.17508508,2127.6,2127.1,0.001]
[1770662360440,1.01420399,2127.5,2127.1,0.001]
[1770662360606,1.17508508,2127.6,2127.1,0.001]
[1770662360799,1.0142041,2127.5,2127.1,0.001]
[1770662361003,4.70006643,2127.7,2127.1,0.001]
[1770662361205,4.70006643,2127.7,2127.1,3.15742752]
[1770662361206,1.01420415,2127.6,2127.1,3.15742752]
[1770662361423,1.26380934,2127.8,2127.1,3.15742752]
[1770662361614,1.01412499,2127.7,2127.1,3.15742752]
[1770662361822,0.002,2127.8,2127.1,3.15742752]
[1770662362629,0.002,2127.6,2127.1,3.15742752]
[1770662363142,0.002,2127.6,2127.3,3.15642752]
[1770662363536,0.002,2127.6,2127.1,0.001]
[1770662363840,0.002,2127.6,2127.1,1.17630236]
[1770662364943,0.002,2127.6,2127.1,0.001]
[1770662365141,0.002,2127.6,2127.1,3.15742752]
[1770662365629,0.002,2127.6,2127.1,0.001]
[1770662366637,0.002,2127.6,2127.2,3.15642752]
[1770662367006,0.002,2127.6,2127.3,1.1751986]
[1770662367818,0.002,2128.0,2127.4,3.15642752]
[1770662368025,2.52361868,2128.4,2127.5,3.15642752]
[1770662368026,1.17461663,2128.4,2127.5,3.15642752]
[1770662368251,1.01314792,2128.3,2127.5,3.15642752]
[1770662368413,1.17461663,2128.4,2127.5,3.15642752]
[1770662368614,1.01262065,2128.3,2127.4,3.284]
[1770662368815,1.01271925,2128.2,2127.4,3.284]
[1770662369114,3.07718812,2128.3,2127.4,3.284]
[1770662369431,1.01268503,2128.2,2127.5,3.15642752]
[1770662369630,1.17463627,2128.4,2127.5,3.15642752]
[1770662369841,1.01237344,2128.3,2127.5,3.15642752]
[1770662370025,1.17463627,2128.4,2127.5,3.15642752]
[1770662370224,1.01236616,2128.3,2127.5,3.15642752]
[1770662370466,1.17657178,2128.5,2127.5,3.15642752]